{"text_format":"1","workbook":"xlsx","n_sheets":1,"sheets":["Лист1"],"not_rendered":{"charts":0,"images":0,"macros":1,"external_links":0,"defined_names":0,"comments":0,"pivot_tables":0},"unopened":[],"bounds":{"document_bytes":16777216,"sheet_cells":100000,"rows_first":2000,"rows_last":500,"rows_between":2000,"halvings":0,"cell_chars":16384,"cell_head_chars":4096},"cells_cut":0,"cells_raw":0,"read":"whole","date_system":"1900"}

{"sheet":"Лист1","index":0,"n_rows":71,"n_cols":21,"rows_kept":71,"cut":false,"hidden":false,"merged":[[1,0,1,3],[46,0,46,3],[50,0,50,3]]}
["ФИО студента",null,"Курс (текущий)","Адрес студенческой почты","1 квиз","2 квиз","3 квиз","4 квиз","5 квиз","6 квиз","8 квиз","9 квиз ",null,null,"мидтерм","мидтерм","КР",null,null,"ЭКЗ ","Итоговая"]
["Образовательная программа=\"Математика\"",null,null,null,null,null,null,null,"9 ноября","16 ноября","23 ноября","30 ноября"]
["Акбари Мухаммад",44,"Бакалавриат 4 курс","maakbari@edu.hse.ru",null,10,null,null,null,null,null,null,{"$f":"SUM(E3:L3)/8","v":1.25},null,null,6,null,{"$f":"SUM(O3:Q3)","v":6},null,8,{"$f":"B3/10+M3/5+T3/5+R3/5","v":7.45}]
["Алексеев Павел",40,"Бакалавриат 4 курс","palekseev@edu.hse.ru",8,9,11,7.5,8.5,10,11,7.75,9.09375,null,null,7,null,{"$f":"SUM(O4:Q4)","v":7},null,6,{"$f":"B4/10+M4/5+T4/5+R4/5","v":8.4187499999999993}]
["Алферова Анастасия Ивановна",null,"Бакалавриат 4 курс","aialferova@edu.hse.ru",10,9,null,null,null,null,null,null,2.375,null,null,null,null,0,null,null,0.47499999999999998]
["Бабич Максим Дмитриевич",40,"Бакалавриат 4 курс","mdbabich@edu.hse.ru",8.5,9.5,10,7,10,null,null,8,6.625,null,7,null,null,7,null,8,8.3250000000000011]
["Башаева Лина Айндиевна",null,"Бакалавриат 4 курс","labashaeva@edu.hse.ru",null,null,null,null,null,null,null,null,0,null,null,null,null,0,null,null,0]
["Белецкий Антон Андреевич",40,"Бакалавриат 2 курс","aabeletskiy@edu.hse.ru",11,12,10.5,8.75,9.75,10,10,null,9,null,11,null,null,11,null,10,10]
["Бобрин Максим Сергеевич",40,"Бакалавриат 3 курс","msbobrin@edu.hse.ru",9,7.75,10,10,9,8.5,9.5,8,8.96875,null,8,null,null,8,null,8,8.9937500000000004]
["Волкова Мария Владиславовна",44,"Бакалавриат 3 курс","mvvolkova_11@edu.hse.ru",10,10.5,10,8.5,8,7,10,8,9,null,null,null,8,8,null,2,8.2000000000000011]
["Галяутдинов Дамир Идрисович",40,"Бакалавриат 2 курс","digalyautdinov@edu.hse.ru",null,9.5,null,null,null,8,null,null,2.1875,null,null,null,9,9,null,8,7.8374999999999995]
["Герен Денис",null,"Бакалавриат 4 курс","dgeren@edu.hse.ru",null,null,null,null,null,null,null,null,0,null,null,null,null,0,null,null,0]
["Голод Владимир Игоревич",null,"Бакалавриат 4 курс","vigolod@edu.hse.ru",null,8,9,null,7.5,7,null,null,3.9375,null,null,null,null,0,null,null,0.78749999999999998]
["Грачёв Денис Вадимович",40,"Бакалавриат 3 курс","dvgrachyov@edu.hse.ru",7,null,10,7,8.5,null,null,8,5.0625,null,null,null,9,9,null,7,8.2125000000000004]
["Гриднев Макар Дмитриевич",44,"Бакалавриат 4 курс","mdgridnev@edu.hse.ru",8,10,10,7,9,9,10,null,7.875,null,null,null,9,9,null,8,9.3750000000000018]
["Емельченков Антон Сергеевич",null,"Магистратура 1 курс","asemelchenkov@edu.hse.ru",null,null,null,null,null,null,null,null,0,null,null,null,null,0,null,null,0]
["Зайцев Тимофей Алексеевич",null,"Бакалавриат 4 курс","tazaytsev@edu.hse.ru",null,null,null,null,null,null,null,null,0,null,null,null,null,0,null,null,0]
["Зиновьев Роман Константинович",40,"Бакалавриат 3 курс","rkzinovev@edu.hse.ru",null,7.5,10,10,8.5,8.5,9.5,null,6.75,null,null,9,null,9,null,null,7.1499999999999995]
["Калинкин Исаак Константинович",40,"Бакалавриат 4 курс","ikkalinkin@edu.hse.ru",null,null,9,9,9,9,8,null,5.5,null,null,null,9,9,null,8,8.5]
["Катаев Матвей Витальевич",40,"Бакалавриат 3 курс","mvkataev@edu.hse.ru",null,null,12,8,8,7,null,null,4.375,null,null,8,null,8,null,5,7.4749999999999996]
["Козлов Василий Юрьевич",40,"Бакалавриат 2 курс","vyukozlov@edu.hse.ru",9.5,null,8.5,null,null,null,null,null,2.25,null,null,7,null,7,null,null,5.85]
["Корнеев Илья Андреевич",40,"Бакалавриат 3 курс","iakorneev_2@edu.hse.ru",7.5,10,null,null,9,null,null,null,3.3125,null,null,9,null,9,null,null,6.4624999999999995]
["Красилич Глеб Александрович",50,"Бакалавриат 4 курс","gakrasilich@edu.hse.ru",null,7,null,null,null,null,null,null,0.875,null,null,null,9,9,null,3,7.5749999999999993]
["Кремко Денис Сергеевич",null,"Бакалавриат 3 курс","dskremko@edu.hse.ru",null,null,null,null,null,null,null,null,0,null,null,null,null,0,null,null,0]
["Мирошниченко Елена Юрьевна",40,"Бакалавриат 3 курс","eyumiroshnichenko@edu.hse.ru",10.5,10,9,null,8.5,9,10.75,null,7.21875,null,9,null,null,9,null,8,8.84375]
["Мясоедова Анна Алексеевна",40,"Бакалавриат 4 курс","aamyasoedova@edu.hse.ru",null,10,9,7.5,6.5,10,10,null,6.625,null,null,null,10,10,null,10,9.3249999999999993]
["Некрашевич Максим Викторович",null,"Бакалавриат 4 курс","mvnekrashevich@edu.hse.ru",null,null,null,null,null,null,null,null,0,null,null,null,null,0,null,null,0]
["Николенко Александр Дмитриевич",null,"Бакалавриат 4 курс","adnikolenko@edu.hse.ru",8,9.5,9,null,null,null,10,null,4.5625,null,null,null,null,0,null,null,0.91249999999999998]
["Новик Иван Геннадьевич",40,"Бакалавриат 4 курс","ignovik@edu.hse.ru",10,9,10,9,null,null,7,10,6.875,null,null,9,null,9,null,8,8.7750000000000004]
["Ожегов Фёдор Юрьевич",40,"Бакалавриат 4 курс","fyuozhegov@edu.hse.ru",9,9,9,9,8.5,null,null,10,6.8125,null,9,null,null,9,null,8,8.7625000000000011]
["Онищенко Татьяна Вадимовна",null,"Бакалавриат 4 курс","tvonischenko@edu.hse.ru",null,null,null,null,null,null,null,null,0,null,null,null,null,0,null,null,0]
["Павлюков Артемий Леонидович",40,"Бакалавриат 4 курс","alpavlyukov@edu.hse.ru",9,9,null,9,8.5,7,8,null,6.3125,null,null,8,null,8,null,null,6.8625000000000007]
["Пилипенко Александр Дмитриевич",45,"Бакалавриат 4 курс","adpilipenko@edu.hse.ru",6,6,8,null,6.5,9,10,8,6.6875,null,null,null,10,10,null,8,9.4375]
["Попов Иван Алексеевич",null,"Бакалавриат 3 курс","iapopov_6@edu.hse.ru",null,null,null,null,null,null,null,null,0,null,null,null,null,0,null,null,0]
["Приз Альберт Игоревич",40,"Бакалавриат 4 курс","aipriz@edu.hse.ru",8.5,10,10,7.75,10,10,11,8,{"$f":"SUM(E35:L35)/8","v":9.40625},null,null,8,null,8,null,8,{"$f":"B35/10+M35/5+T35/5+R35/5","v":9.0812499999999989}]
["Рябов Егор Николаевич",null,"Бакалавриат 3 курс","enryabov@edu.hse.ru",10,10,10,10,null,9,null,null,6.125,null,null,null,10,10,null,null,3.2250000000000001]
["Рябов Павел Павлович",40,"Бакалавриат 4 курс","ppryabov@edu.hse.ru",10.5,9.25,8,8,7.5,9,10,null,7.78125,null,null,9,null,9,null,null,7.3562500000000002]
["Салимов Руслан Ирекович",null,"Бакалавриат 4 курс","risalimov@edu.hse.ru",null,null,null,null,null,null,null,null,0,null,null,null,null,0,null,null,0]
["Самойленко Иван Александрович",40,"Бакалавриат 3 курс","iasamoylenko@edu.hse.ru",9.5,10.5,9.5,9,8,7.5,10.25,10,9.28125,null,null,null,10,10,null,10,9.8562499999999993]
["Соколова Анна Алексеевна",40,"Бакалавриат 4 курс","aasokolova_7@edu.hse.ru",10,9,10,7,null,null,null,null,4.5,null,null,10,null,10,null,7,8.3000000000000007]
["Сотский Арсений Евгеньевич",null,"Магистратура 2 курс","aesotskiy@edu.hse.ru",null,null,null,null,null,null,null,null,0,null,null,null,null,0,null,null,0]
["Сушко Артем Юрьевич",40,"Бакалавриат 3 курс","ayusushko@edu.hse.ru",7,7.5,10,null,10,8,null,null,5.3125,null,8,null,null,8,null,5,7.6624999999999996]
["Уткин Владимир Павлович",45,"Бакалавриат 4 курс","vputkin@edu.hse.ru",null,9,10,8.25,7.5,7,8,8,7.21875,null,null,7,null,7,null,6,8.5437499999999993]
["Федоров Михаил Сергеевич",40,"Бакалавриат 4 курс","msfedorov_1@edu.hse.ru",8,10,null,8,8,null,8,null,5.25,null,null,9,null,9,null,null,6.85]
["Шахкаламов Степан Иванович",45,"Бакалавриат 3 курс","sishakhkalamov@edu.hse.ru",10,10.5,10,8,9,8,9,8,9.0625,null,null,null,10,10,null,7,9.7125000000000004]
["Количество: 43",null,null,null,null,null,null,null,null,null,null,null,0,null,null,null,null,0,null,null,0]
["Образовательная программа=\"Математика и математическая физика\"",null,null,null,null,null,null,null,null,null,null,null,0,null,null,null,null,0,null,null,0]
["Барон Полина Глебовна",null,"Магистратура 1 курс","pgbaron@edu.hse.ru",null,null,null,null,null,null,null,null,0,null,null,null,null,0,null,null,0]
["Зимин Фёдор Владимирович",null,"Магистратура 1 курс","fvzimin@edu.hse.ru",null,null,null,null,null,null,null,null,0,null,null,null,null,0,null,null,0]
["Количество: 2",null,null,null,null,null,null,null,null,null,null,null,0,null,null,null,null,0,null,null,0]
["Образовательная программа=\"Совместный бакалавриат НИУ ВШЭ и ЦПМ\"",null,null,null,null,null,null,null,null,null,null,null,0,null,null,null,null,0,null,null,0]
["Глазов Денис Владимирович",null,"Бакалавриат 4 курс","dvglazov_1@edu.hse.ru",null,null,null,null,null,null,null,null,0,null,null,null,null,0,null,null,0]
["Денисов Кирилл Игоревич",40,"Бакалавриат 2 курс","kidenisov_1@edu.hse.ru",7,null,null,8.75,null,7,null,null,2.84375,null,7,null,null,7,null,7,7.3687500000000004]
["Заикин Евгений Юрьевич",null,"Бакалавриат 4 курс","eyuzaikin@edu.hse.ru",null,null,null,null,null,null,null,null,0,null,null,null,null,0,null,10,2]
["Звонков Илья Валерьевич",null,"Бакалавриат 4 курс","ivzvonkov@edu.hse.ru",null,null,null,null,null,null,null,null,0,null,null,null,null,0,null,null,0]
["Ипатова Надежда Андреевна",40,"Бакалавриат 4 курс","naipatova@edu.hse.ru",null,null,null,10,null,null,null,null,1.25,null,6,null,null,6,null,3,6.05]
["Крылов Егор Андреевич",50,"Бакалавриат 3 курс","eakrylov@edu.hse.ru",10,null,8,null,null,null,null,null,2.25,null,null,null,10,10,null,3,8.0500000000000007]
["Смирнова Юлия Игоревна",null,"Бакалавриат 4 курс","yuismirnova_2@edu.hse.ru","cancel",null,null,null,null,null,null,null,0,null,null,null,null,0,null,null,0]
["Удалова Маргарита Сергеевна",null,"Бакалавриат 4 курс","msudalova@edu.hse.ru","cancel",null,null,null,null,null,null,null,0,null,null,null,null,0,null,null,0]
["Количество: 8",null,null,null,null,null,null,null,null,null,null,null,0,null,null,null,null,0,null,null,0]
["Количество: 53",null,null,null,null,null,null,null,null,null,null,null,0,null,null,null,null,0,null,null,0]
[null,null,null,null,null,null,null,null,null,null,null,null,0,null,null,null,null,0,null,null,0]
["Хорошавкина Надежда",40,"Бакалавриат 3 курс",null,10,10.5,10,10.5,9.5,10.5,11,null,9,null,11,null,null,11,null,9,9.8000000000000007]
["Короленков Василий",45,"Бакалавриат 3 курс","korolenkov@inbox.ru",8.5,11,9.5,9.75,10.25,8.5,10.5,10.25,9.78125,null,null,null,10,10,null,3,9.0562499999999986]
["Абдуллаева Дж",40,"бмг 181",null,7.5,8.5,10,8,9,10,9,8,8.75,null,7,null,null,7,null,10,9.15]
["Романова Дарья",40,"4 курс",null,9,10,10,7.5,null,10,12,8,8.3125,null,10,null,null,10,null,7,9.0625]
["Коновалов  В",null,"3 курс",null,9,null,null,null,null,null,null,null,{"$f":"SUM(E67:L67)/8","v":1.125},null,null,null,null,0,null,null,{"$f":"B67/10+M67/5+T67/5+R67/5","v":0.22500000000000001}]
["Апресян",40,null,null,6,9,6,null,null,7,10,null,4.75,null,null,5,null,{"$f":"SUM(O68:Q68)","v":5},null,10,7.95]
["Исаева Ксения",50,null,null,10,9.5,9,7,7,7,7,null,{"$f":"SUM(E69:L69)/8","v":7.0625},null,7,null,null,7,null,null,10]
[]
[null,null,null,null,null,null,null,null,"9 ноября","16 ноября","23 ноября","30ноября"]